[Event "Gibraltar Masters 18th"]
[Site "Gibraltar"]
[Date "2020.01.28"]
[Round "8.29"]
[White "Ramirez, Alejandro"]
[Black "Mendonca, Leon Luke"]
[Result "1/2-1/2"]
[ECO "A17"]
[WhiteElo "2574"]
[BlackElo "2417"]
[PlyCount "72"]
[EventDate "2020.01.21"]
[EventType "swiss"]
[EventRounds "10"]
[EventCountry "GGB"]
[SourceTitle "BritBase"]
[Source "John Saunders"]
[SourceDate "2021.06.05"]
[SourceVersion "1"]
[SourceVersionDate "2021.06.05"]
[SourceQuality "1"]
[TimeControl "40/100:0"]
[WhiteClock "0:03:37"]
[BlackClock "0:02:49"]

1. c4 {[%emt 0:00:00]} Nf6 {[%emt 0:00:00]} 2. Nc3 {[%emt 0:00:00]} e6 {
[%emt 0:00:00]} 3. Nf3 {[%emt 0:00:00]} Bb4 {[%emt 0:00:00]} 4. g4 {[%emt 0:00:
00]} h6 {[%emt 0:00:00]} 5. Rg1 {[%emt 0:00:00]} b6 {[%emt 0:00:00]} 6. Qb3 {
[%emt 0:00:00]} a5 {[%emt 0:00:00]} 7. a3 {[%emt 0:00:00]} Be7 {[%emt 0:00:00]}
8. h4 {[%emt 0:00:00]} Bb7 {[%emt 0:00:00]} 9. g5 {[%emt 0:00:00]} hxg5 {
[%emt 0:00:00]} 10. hxg5 {[%emt 0:00:00]} Ne4 {[%emt 0:00:00]} 11. Nxe4 {
[%emt 0:00:00]} Bxe4 {[%emt 0:00:00]} 12. Qe3 {[%emt 0:00:00]} Bxf3 {[%emt 0:
00:00]} 13. exf3 {[%emt 0:00:00]} c5 {[%emt 0:00:00]} 14. b3 {[%emt 0:00:00]}
g6 {[%emt 0:00:00]} 15. Bb2 {[%emt 0:00:00]} Rh4 {[%emt 0:00:00]} 16. f4 {
[%emt 0:00:00]} Nc6 {[%emt 0:00:00]} 17. Qg3 {[%emt 0:00:00]} Rh7 {[%emt 0:00:
00]} 18. f5 {[%emt 0:00:00]} exf5 {[%emt 0:00:00]} 19. Bg2 {[%emt 0:00:00]} Qb8
{[%emt 0:00:00]} 20. Qe3 {[%emt 0:00:00]} Qd6 {[%emt 0:00:00]} 21. O-O-O {
[%emt 0:00:00]} O-O-O {[%emt 0:00:00]} 22. Bxc6 {[%emt 0:00:00]} dxc6 {[%emt 0:
00:00]} 23. Rde1 {[%emt 0:00:00]} Rd7 {[%emt 0:00:00]} 24. Kc2 {[%emt 0:00:00]}
Rh4 {[%emt 0:00:00]} 25. Be5 {[%emt 0:00:00]} Qe6 {[%emt 0:00:00]} 26. Qf3 {
[%emt 0:00:00]} Re4 {[%emt 0:00:00]} 27. Rxe4 {[%emt 0:00:00]} fxe4 {[%emt 0:
00:00]} 28. Qxe4 {[%emt 0:00:00]} Kb7 {[%emt 0:00:00]} 29. f4 {[%emt 0:00:00]}
Bd6 {[%emt 0:00:00]} 30. Re1 {[%emt 0:00:00]} Bxe5 {[%emt 0:00:00]} 31. Qxe5 {
[%emt 0:00:00]} Qh3 {[%emt 0:00:00]} 32. Qe3 {[%emt 0:00:00]} Qf5+ {[%emt 0:00:
00]} 33. Qe4 {[%emt 0:00:00]} Qh3 {[%emt 0:00:00]} 34. Re3 {[%emt 0:00:00]} Qh2
{[%emt 0:00:00]} 35. Rd3 {[%emt 0:00:00]} Rxd3 {[%emt 0:00:00]} 36. Kxd3 {
[%emt 0:00:00]} Qh3+ {[%emt 0:00:00]} 1/2-1/2

[Event "Gibraltar Masters 18th"]
[Site "Gibraltar"]
[Date "2020.01.28"]
[Round "8.30"]
[White "Li, Di"]
[Black "Haug, Johannes"]
[Result "1-0"]
[ECO "E11"]
[WhiteElo "2562"]
[BlackElo "2407"]
[PlyCount "83"]
[EventDate "2020.01.21"]
[EventType "swiss"]
[EventRounds "10"]
[EventCountry "GGB"]
[SourceTitle "BritBase"]
[Source "John Saunders"]
[SourceDate "2021.06.05"]
[SourceVersion "1"]
[SourceVersionDate "2021.06.05"]
[SourceQuality "1"]
[TimeControl "40/100:0"]
[WhiteClock "0:49:31"]
[BlackClock "0:01:40"]

1. Nf3 {[%emt 0:00:00]} Nf6 {[%emt 0:00:00]} 2. c4 {[%emt 0:00:00]} e6 {
[%emt 0:00:00]} 3. d4 {[%emt 0:00:00]} Bb4+ {[%emt 0:00:00]} 4. Bd2 {[%emt 0:
00:00]} a5 {[%emt 0:00:00]} 5. Nc3 {[%emt 0:00:00]} d5 {[%emt 0:00:00]} 6. e3 {
[%emt 0:00:00]} O-O {[%emt 0:00:00]} 7. Rc1 {[%emt 0:00:00]} b6 {[%emt 0:00:00]
} 8. cxd5 {[%emt 0:00:00]} exd5 {[%emt 0:00:00]} 9. Ne5 {[%emt 0:00:00]} c5 {
[%emt 0:00:00]} 10. Be2 {[%emt 0:00:00]} Bb7 {[%emt 0:00:00]} 11. O-O {[%emt 0:
00:00]} Nc6 {[%emt 0:00:00]} 12. a3 {[%emt 0:00:00]} Nxe5 {[%emt 0:00:00]} 13.
dxe5 {[%emt 0:00:00]} Bxc3 {[%emt 0:00:00]} 14. bxc3 {[%emt 0:00:00]} Ne4 {
[%emt 0:00:00]} 15. f3 {[%emt 0:00:00]} Nxd2 {[%emt 0:00:00]} 16. Qxd2 {
[%emt 0:00:00]} Qe7 {[%emt 0:00:00]} 17. Rb1 {[%emt 0:00:00]} Qxe5 {[%emt 0:00:
00]} 18. Rxb6 {[%emt 0:00:00]} Rfb8 {[%emt 0:00:00]} 19. Rfb1 {[%emt 0:00:00]}
Bc6 {[%emt 0:00:00]} 20. Rxb8+ {[%emt 0:00:00]} Rxb8 {[%emt 0:00:00]} 21. Rxb8+
{[%emt 0:00:00]} Qxb8 {[%emt 0:00:00]} 22. c4 {[%emt 0:00:00]} dxc4 {[%emt 0:
00:00]} 23. Qxa5 {[%emt 0:00:00]} Qe5 {[%emt 0:00:00]} 24. Qd8+ {[%emt 0:00:00]
} Be8 {[%emt 0:00:00]} 25. Kf2 {[%emt 0:00:00]} g6 {[%emt 0:00:00]} 26. Bxc4 {
[%emt 0:00:00]} Kf8 {[%emt 0:00:00]} 27. f4 {[%emt 0:00:00]} Qb2+ {[%emt 0:00:
00]} 28. Kf3 {[%emt 0:00:00]} Qb7+ {[%emt 0:00:00]} 29. Kg3 {[%emt 0:00:00]}
Qc6 {[%emt 0:00:00]} 30. h3 {[%emt 0:00:00]} Kg7 {[%emt 0:00:00]} 31. Qe7 {
[%emt 0:00:00]} h5 {[%emt 0:00:00]} 32. e4 {[%emt 0:00:00]} Qf6 {[%emt 0:00:00]
} 33. Qxf6+ Kxf6 {[%emt 0:00:00]} 34. h4 {[%emt 0:00:00]} Bc6 {[%emt 0:00:00]}
35. Kf3 {[%emt 0:00:00]} Ke7 {[%emt 0:00:00]} 36. Ke3 {[%emt 0:00:00]} f6 {
[%emt 0:00:23]} 37. g3 {[%emt 0:00:00]} Be8 {[%emt 0:00:00]} 38. e5 {[%emt 0:
00:00]} f5 {[%emt 0:00:00]} 39. Kd3 {[%emt 0:00:00]} Kd8 {[%emt 0:00:00]} 40.
Kc3 {[%emt 0:00:00]} Kc7 {[%emt 0:00:00]} 41. Bg8 {[%emt 0:00:53]} Kb6 {
[%emt 0:01:17]} 42. e6 {[%emt 0:00:00]} 1-0

[Event "Gibraltar Masters 18th"]
[Site "Gibraltar"]
[Date "2020.01.28"]
[Round "8.31"]
[White "Vaibhav, Suri"]
[Black "Reimanis, Ritvars"]
[Result "1-0"]
[ECO "B56"]
[WhiteElo "2593"]
[BlackElo "2370"]
[PlyCount "105"]
[EventDate "2020.01.21"]
[EventType "swiss"]
[EventRounds "10"]
[EventCountry "GGB"]
[SourceTitle "BritBase"]
[Source "John Saunders"]
[SourceDate "2021.06.05"]
[SourceVersion "1"]
[SourceVersionDate "2021.06.05"]
[SourceQuality "1"]
[TimeControl "40/100:0"]
[WhiteClock "0:05:27"]
[BlackClock "0:36:38"]

1. e4 {[%emt 0:00:00]} c5 {[%emt 0:00:00]} 2. Nf3 {[%emt 0:00:00]} Nc6 {
[%emt 0:00:00]} 3. d4 {[%emt 0:00:00]} cxd4 {[%emt 0:00:00]} 4. Nxd4 {[%emt 0:
00:00]} Nf6 {[%emt 0:00:00]} 5. Nc3 {[%emt 0:00:00]} d6 {[%emt 0:00:00]} 6. f3
{[%emt 0:00:00]} e5 {[%emt 0:00:00]} 7. Nb3 {[%emt 0:00:00]} Be6 {[%emt 0:00:
00]} 8. Nd5 {[%emt 0:00:00]} Bxd5 {[%emt 0:00:00]} 9. exd5 {[%emt 0:00:00]} Nb4
{[%emt 0:00:00]} 10. Bb5+ {[%emt 0:00:00]} Nd7 {[%emt 0:00:00]} 11. Be3 {
[%emt 0:00:00]} Na6 {[%emt 0:00:00]} 12. Qd2 {[%emt 0:00:00]} Nc7 {[%emt 0:00:
00]} 13. Be2 {[%emt 0:00:00]} b6 {[%emt 0:00:00]} 14. O-O-O {[%emt 0:00:00]} a5
{[%emt 0:00:00]} 15. Kb1 {[%emt 0:00:00]} Be7 {[%emt 0:00:00]} 16. g4 {[%emt 0:
00:00]} a4 {[%emt 0:00:00]} 17. Na1 {[%emt 0:00:00]} Nc5 {[%emt 0:00:00]} 18.
c3 {[%emt 0:00:00]} O-O {[%emt 0:00:00]} 19. Nc2 {[%emt 0:00:00]} f5 {[%emt 0:
00:00]} 20. gxf5 {[%emt 0:00:00]} Rxf5 {[%emt 0:00:00]} 21. Rdg1 {[%emt 0:00:
00]} Kh8 {[%emt 0:00:00]} 22. h4 {[%emt 0:00:00]} Bf6 {[%emt 0:00:00]} 23. Rg4
{[%emt 0:00:00]} Qe7 {[%emt 0:00:00]} 24. a3 {[%emt 0:00:00]} h5 {[%emt 0:00:
00]} 25. Re4 {[%emt 0:00:00]} Qf7 {[%emt 0:00:00]} 26. Bxc5 {[%emt 0:00:00]}
bxc5 {[%emt 0:00:00]} 27. Ne3 {[%emt 0:00:00]} Rf4 {[%emt 0:00:00]} 28. Qd3 {
[%emt 0:00:00]} Rb8 {[%emt 0:00:00]} 29. Bd1 {[%emt 0:00:00]} Kg8 {[%emt 0:00:
00]} 30. Ka2 {[%emt 0:00:00]} Rb6 {[%emt 0:00:00]} 31. Rxa4 {[%emt 0:00:00]}
Be7 {[%emt 0:00:00]} 32. Re4 {[%emt 0:00:00]} Rb8 {[%emt 0:00:00]} 33. Rh2 {
[%emt 0:00:00]} Kf8 {[%emt 0:00:00]} 34. a4 {[%emt 0:00:00]} Kg8 {[%emt 0:00:
00]} 35. Ka3 {[%emt 0:00:00]} Ra8 {[%emt 0:00:00]} 36. Rh3 {[%emt 0:00:00]} Kf8
{[%emt 0:00:00]} 37. Rh1 {[%emt 0:00:00]} Kg8 {[%emt 0:00:00]} 38. Rh2 {
[%emt 0:00:00]} Kf8 {[%emt 0:00:00]} 39. Ka2 {[%emt 0:00:00]} Kg8 {[%emt 0:00:
00]} 40. Rh1 {[%emt 0:00:30]} Kf8 {[%emt 0:00:00]} 41. Ka3 {[%emt 0:00:00]} Kg8
{[%emt 0:00:00]} 42. Rg1 {[%emt 0:00:00]} Ne8 {[%emt 0:00:00]} 43. Rxf4 {
[%emt 0:00:00]} Qxf4 {[%emt 0:00:00]} 44. Bc2 {[%emt 0:00:00]} Bf6 {[%emt 0:00:
00]} 45. Qh7+ {[%emt 0:00:00]} Kf8 {[%emt 0:00:00]} 46. Qh8+ {[%emt 0:00:00]}
Ke7 {[%emt 0:00:00]} 47. Nf5+ {[%emt 0:00:00]} Kd7 {[%emt 0:00:00]} 48. Qxh5 {
[%emt 0:00:00]} Kd8 {[%emt 0:00:00]} 49. Qf7 {[%emt 0:00:00]} Rc8 {[%emt 0:00:
00]} 50. a5 {[%emt 0:00:00]} Rc7 {[%emt 0:00:00]} 51. Qe6 {[%emt 0:00:00]} Ra7
{[%emt 0:00:00]} 52. Ba4 {[%emt 0:00:00]} Be7 {[%emt 0:00:00]} 53. Qg8 {
[%emt 0:00:00]} 1-0

[Event "Gibraltar Masters 18th"]
[Site "Gibraltar"]
[Date "2020.01.28"]
[Round "8.32"]
[White "Buckels, Valentin"]
[Black "Ivanchuk, Vassily"]
[Result "1-0"]
[ECO "B07"]
[WhiteElo "2459"]
[BlackElo "2698"]
[PlyCount "77"]
[EventDate "2020.01.21"]
[EventType "swiss"]
[EventRounds "10"]
[EventCountry "GGB"]
[SourceTitle "BritBase"]
[Source "John Saunders"]
[SourceDate "2021.06.05"]
[SourceVersion "1"]
[SourceVersionDate "2021.06.05"]
[SourceQuality "1"]
[TimeControl "40/100:0"]
[WhiteClock "0:01:04"]
[BlackClock "0:01:28"]

1. d4 {[%emt 0:00:00]} Nf6 {[%emt 0:00:00]} 2. Bf4 {[%emt 0:00:00]} d6 {
[%emt 0:00:00]} 3. Nc3 {[%emt 0:00:00]} c6 {[%emt 0:00:00]} 4. e4 {[%emt 0:00:
00]} Qa5 {[%emt 0:00:00]} 5. e5 {[%emt 0:00:00]} dxe5 {[%emt 0:00:00]} 6. dxe5
{[%emt 0:00:00]} Ne4 {[%emt 0:00:00]} 7. Nge2 {[%emt 0:00:00]} g5 {[%emt 0:00:
00]} 8. Bd2 {[%emt 0:00:00]} Nxd2 {[%emt 0:00:00]} 9. Qxd2 {[%emt 0:00:00]}
Qxe5 {[%emt 0:00:00]} 10. O-O-O {[%emt 0:00:00]} Nd7 {[%emt 0:00:00]} 11. g3 {
[%emt 0:00:00]} Bg7 {[%emt 0:00:00]} 12. Bh3 {[%emt 0:00:00]} O-O {[%emt 0:00:
00]} 13. Rhe1 {[%emt 0:00:00]} Nc5 {[%emt 0:00:00]} 14. Bxc8 {[%emt 0:00:00]}
Raxc8 {[%emt 0:00:00]} 15. Nf4 {[%emt 0:00:00]} Qd6 {[%emt 0:00:00]} 16. Qe3 {
[%emt 0:00:00]} gxf4 {[%emt 0:00:00]} 17. gxf4 {[%emt 0:00:00]} Qf6 {[%emt 0:
00:00]} 18. Qxc5 {[%emt 0:00:00]} Qxf4+ {[%emt 0:00:00]} 19. Kb1 {[%emt 0:00:
00]} e6 {[%emt 0:00:00]} 20. Re4 {[%emt 0:00:00]} Qf3 {[%emt 0:00:00]} 21. Rg1
{[%emt 0:00:00]} Kh8 {[%emt 0:00:00]} 22. Reg4 {[%emt 0:00:00]} Rg8 {[%emt 0:
00:00]} 23. Qxa7 {[%emt 0:00:00]} c5 {[%emt 0:00:00]} 24. R4g3 {[%emt 0:00:00]}
Qxf2 {[%emt 0:00:00]} 25. Qxb7 {[%emt 0:00:00]} Rb8 {[%emt 0:00:00]} 26. Qe7 {
[%emt 0:00:19]} Rge8 {[%emt 0:00:00]} 27. Qh4 {[%emt 0:00:42]} c4 {[%emt 0:00:
55]} 28. Qh3 {[%emt 0:00:01]} Rxb2+ {[%emt 0:00:11]} 29. Kxb2 {[%emt 0:00:00]}
Rb8+ {[%emt 0:00:00]} 30. Kc1 {[%emt 0:00:00]} Qf4+ {[%emt 0:00:00]} 31. Kd1 {
[%emt 0:00:06]} Rd8+ {[%emt 0:00:00]} 32. Ke1 {[%emt 0:00:00]} Qc1+ {[%emt 0:
00:00]} 33. Kf2 {[%emt 0:00:00]} Bd4+ {[%emt 0:00:00]} 34. Re3 {[%emt 0:00:00]}
Qd2+ {[%emt 0:00:00]} 35. Ne2 {[%emt 0:00:00]} Rd5 {[%emt 0:00:00]} 36. Rgg3 {
[%emt 0:00:00]} Re5 {[%emt 0:00:00]} 37. Rgf3 {[%emt 0:00:00]} c3 {[%emt 0:00:
00]} 38. Qh6 {[%emt 0:00:00]} Bc5 {[%emt 0:00:00]} 39. Qf6+ {[%emt 0:00:00]}
1-0

[Event "Gibraltar Masters 18th"]
[Site "Gibraltar"]
[Date "2020.01.28"]
[Round "8.33"]
[White "Bulmaga, Irina"]
[Black "Lagarde, Maxime"]
[Result "0-1"]
[ECO "C12"]
[WhiteElo "2446"]
[BlackElo "2651"]
[PlyCount "70"]
[EventDate "2020.01.21"]
[EventType "swiss"]
[EventRounds "10"]
[EventCountry "GGB"]
[SourceTitle "BritBase"]
[Source "John Saunders"]
[SourceDate "2021.06.05"]
[SourceVersion "1"]
[SourceVersionDate "2021.06.05"]
[SourceQuality "1"]
[TimeControl "40/100:0"]

1. e4 {[%emt 1:30:37]} e6 {[%emt 0:00:20]} 2. d4 {[%emt 0:00:09]} d5 {[%emt 0:
00:03]} 3. Nc3 {[%emt 0:00:07]} Nf6 {[%emt 0:00:05]} 4. Bg5 {[%emt 0:00:07]}
Bb4 {[%emt 0:00:22]} 5. e5 {[%emt 0:00:13]} h6 {[%emt 0:00:03]} 6. Bh4 {
[%emt 0:00:05]} g5 {[%emt 0:00:04]} 7. Bg3 {[%emt 0:00:06]} Ne4 {[%emt 0:00:04]
} 8. Nge2 {[%emt 0:00:07]} h5 {[%emt 0:00:05]} 9. f3 {[%emt 0:00:58]} Nxg3 {
[%emt 0:00:24]} 10. hxg3 {[%emt 0:00:08]} Bd7 {[%emt 0:00:12]} 11. Qd2 {
[%emt 0:05:57]} Be7 {[%emt 0:00:21]} 12. f4 {[%emt 0:07:37]} c5 {[%emt 0:12:14]
} 13. dxc5 {[%emt 0:08:52]} Nc6 {[%emt 0:02:50]} 14. O-O-O {[%emt 0:24:37]} Qa5
{[%emt 0:09:01]} 15. Nd4 {[%emt 0:09:37]} Nxd4 {[%emt 0:01:43]} 16. Qxd4 {
[%emt 0:00:05]} Bxc5 {[%emt 0:02:08]} 17. Qd3 {[%emt 0:01:26]} O-O-O {[%emt 0:
04:11]} 18. Kb1 {[%emt 0:08:46]} a6 {[%emt 0:03:41]} 19. Ne2 {[%emt 0:11:48]}
Bb5 {[%emt 0:05:56]} 20. Qc3 {[%emt 0:00:55]} Qxc3 {[%emt 0:00:59]} 21. Nxc3 {
[%emt 0:00:07]} Bc6 {[%emt 0:00:14]} 22. Ne2 {[%emt 0:05:59]} Bf2 {[%emt 0:08:
24]} 23. Nd4 {[%emt 0:00:06]} Bxg3 {[%emt 0:03:09]} 24. Nxc6 {[%emt 0:00:11]}
bxc6 {[%emt 0:00:05]} 25. Bxa6+ {[%emt 0:00:08]} Kd7 {[%emt 0:00:15]} 26. fxg5
{[%emt 0:01:10]} Bxe5 {[%emt 0:02:27]} 27. Rdf1 {[%emt 0:11:35]} Ke7 {[%emt 0:
00:57]} 28. Rh3 {[%emt 0:00:55]} Rb8 {[%emt 0:03:18]} 29. b3 {[%emt 0:03:37]}
Rbg8 {[%emt 0:01:55]} 30. Rhf3 {[%emt 0:03:16]} Rg7 {[%emt 0:01:15]} 31. Bd3 {
[%emt 0:01:22]} Rxg5 {[%emt 0:04:15]} 32. Rxf7+ {[%emt 0:00:07]} Kd6 {[%emt 0:
00:02]} 33. R1f2 {[%emt 0:01:06]} Bd4 {[%emt 0:00:04]} 34. R2f4 {[%emt 0:01:40]
} Bc3 {[%emt 0:00:31]} 35. Bf1 {[%emt 0:00:23]} Re5 {[%emt 0:00:11]} 0-1

[Event "Gibraltar Masters 18th"]
[Site "Gibraltar"]
[Date "2020.01.28"]
[Round "8.34"]
[White "Astaneh Lopez, Alex"]
[Black "Moussard, Jules"]
[Result "0-1"]
[ECO "A88"]
[WhiteElo "2432"]
[BlackElo "2600"]
[PlyCount "66"]
[EventDate "2020.01.21"]
[EventType "swiss"]
[EventRounds "10"]
[EventCountry "GGB"]
[SourceTitle "BritBase"]
[Source "John Saunders"]
[SourceDate "2021.06.05"]
[SourceVersion "1"]
[SourceVersionDate "2021.06.05"]
[SourceQuality "1"]
[TimeControl "40/100:0"]
[WhiteClock "0:01:53"]
[BlackClock "0:37:43"]

1. Nf3 {[%emt 0:00:00]} d6 {[%emt 0:00:00]} 2. d4 {[%emt 0:00:00]} f5 {[%emt 0:
00:00]} 3. b3 {[%emt 0:00:00]} Nf6 {[%emt 0:00:00]} 4. Bb2 {[%emt 0:00:00]} g6
{[%emt 0:00:00]} 5. g3 {[%emt 0:00:00]} Bg7 {[%emt 0:00:00]} 6. Bg2 {[%emt 0:
00:00]} O-O {[%emt 0:00:00]} 7. O-O {[%emt 0:00:00]} c6 {[%emt 0:00:00]} 8. c4
{[%emt 0:00:00]} a5 {[%emt 0:00:00]} 9. Nc3 {[%emt 0:00:00]} Na6 {[%emt 0:00:
00]} 10. e3 {[%emt 0:00:00]} Qc7 {[%emt 0:00:00]} 11. Rc1 {[%emt 0:00:00]} Kh8
{[%emt 0:00:00]} 12. Ne2 {[%emt 0:00:00]} Be6 {[%emt 0:00:00]} 13. Nf4 {
[%emt 0:00:00]} Bg8 {[%emt 0:00:00]} 14. Ng5 {[%emt 0:00:00]} Qd7 {[%emt 0:00:
00]} 15. d5 {[%emt 0:00:00]} Nc7 {[%emt 0:00:00]} 16. dxc6 {[%emt 0:00:00]}
bxc6 {[%emt 0:00:00]} 17. c5 {[%emt 0:00:00]} d5 {[%emt 0:00:00]} 18. e4 {
[%emt 0:00:00]} fxe4 {[%emt 0:00:00]} 19. Bh3 {[%emt 0:00:00]} e6 {[%emt 0:00:
00]} 20. f3 {[%emt 0:00:00]} Qe7 {[%emt 0:00:00]} 21. fxe4 {[%emt 0:00:00]} e5
{[%emt 0:00:00]} 22. Nd3 {[%emt 0:00:00]} dxe4 {[%emt 0:00:00]} 23. Nf2 {
[%emt 0:00:00]} e3 {[%emt 0:00:00]} 24. Nfe4 {[%emt 0:00:00]} Nfd5 {[%emt 0:00:
00]} 25. Qe2 {[%emt 0:00:00]} Nb5 {[%emt 0:00:00]} 26. Nf3 {[%emt 0:00:00]} a4
{[%emt 0:00:00]} 27. bxa4 {[%emt 0:00:00]} Rxa4 {[%emt 0:00:00]} 28. Nd6 {
[%emt 0:00:00]} Rxa2 {[%emt 0:00:00]} 29. Nxe5 {[%emt 0:00:00]} Rxf1+ {[%emt 0:
00:00]} 30. Bxf1 {[%emt 0:00:00]} Nbc3 {[%emt 0:00:00]} 31. Bxc3 {[%emt 0:00:
33]} Rxe2 {[%emt 0:00:00]} 32. Nxc6 {[%emt 0:00:00]} Qf8 {[%emt 0:00:00]} 33.
Bxg7+ {[%emt 0:00:00]} Kxg7 {[%emt 0:00:00]} 0-1

[Event "Gibraltar Masters 18th"]
[Site "Gibraltar"]
[Date "2020.01.28"]
[Round "8.35"]
[White "Kryakvin, Dmitry"]
[Black "Mammadzada, Gunay"]
[Result "1-0"]
[ECO "D15"]
[WhiteElo "2592"]
[BlackElo "2455"]
[PlyCount "77"]
[EventDate "2020.01.21"]
[EventType "swiss"]
[EventRounds "10"]
[EventCountry "GGB"]
[SourceTitle "BritBase"]
[Source "John Saunders"]
[SourceDate "2021.06.05"]
[SourceVersion "1"]
[SourceVersionDate "2021.06.05"]
[SourceQuality "1"]
[TimeControl "40/100:0"]
[WhiteClock "0:08:22"]
[BlackClock "0:00:45"]

1. d4 {[%emt 0:00:00]} d5 {[%emt 0:00:00]} 2. c4 {[%emt 0:00:00]} c6 {[%emt 0:
00:00]} 3. Nf3 {[%emt 0:00:00]} Nf6 {[%emt 0:00:00]} 4. Nc3 {[%emt 0:00:00]} a6
{[%emt 0:00:00]} 5. e3 {[%emt 0:00:00]} Bf5 {[%emt 0:00:00]} 6. Qb3 {[%emt 0:
00:00]} Ra7 {[%emt 0:00:00]} 7. Nh4 {[%emt 0:00:00]} Bc8 {[%emt 0:00:00]} 8.
Qc2 {[%emt 0:00:00]} e6 {[%emt 0:00:00]} 9. Nf3 {[%emt 0:00:00]} dxc4 {[%emt 0:
00:00]} 10. Bxc4 {[%emt 0:00:00]} c5 {[%emt 0:00:00]} 11. dxc5 {[%emt 0:00:00]}
Bxc5 {[%emt 0:00:00]} 12. O-O {[%emt 0:00:00]} O-O {[%emt 0:00:00]} 13. Rd1 {
[%emt 0:00:00]} Qc7 {[%emt 0:00:00]} 14. b3 {[%emt 0:00:00]} Be7 {[%emt 0:00:
00]} 15. Bb2 {[%emt 0:00:00]} Nbd7 {[%emt 0:00:00]} 16. Rac1 {[%emt 0:00:00]}
Qb8 {[%emt 0:00:00]} 17. Ne4 {[%emt 0:00:00]} h6 {[%emt 0:00:00]} 18. Bd3 {
[%emt 0:00:00]} b6 {[%emt 0:00:00]} 19. h3 {[%emt 0:00:00]} Bb7 {[%emt 0:00:00]
} 20. Nxf6+ {[%emt 0:00:00]} Nxf6 {[%emt 0:00:00]} 21. Ne5 {[%emt 0:00:00]} Bc5
{[%emt 0:00:00]} 22. Qe2 {[%emt 0:00:00]} Qa8 {[%emt 0:00:00]} 23. Ng4 {
[%emt 0:00:00]} Ne4 {[%emt 0:00:00]} 24. Nxh6+ {[%emt 0:00:00]} gxh6 {[%emt 0:
00:00]} 25. Qg4+ {[%emt 0:00:00]} Ng5 {[%emt 0:00:00]} 26. h4 {[%emt 0:00:00]}
Bf3 {[%emt 0:00:00]} 27. gxf3 {[%emt 0:00:00]} Qxf3 {[%emt 0:00:00]} 28. Rc4 {
[%emt 0:00:00]} f5 {[%emt 0:00:00]} 29. Qxf3 {[%emt 0:00:00]} Nxf3+ {[%emt 0:
00:00]} 30. Kg2 {[%emt 0:00:00]} e5 {[%emt 0:00:00]} 31. Be2 {[%emt 0:00:00]}
e4 {[%emt 0:00:00]} 32. Bxf3 {[%emt 0:00:00]} exf3+ {[%emt 0:00:00]} 33. Kxf3 {
[%emt 0:00:00]} a5 {[%emt 0:00:00]} 34. h5 {[%emt 0:00:00]} Kf7 {[%emt 0:00:00]
} 35. Rf4 {[%emt 0:00:00]} Ke8 {[%emt 0:00:00]} 36. Rd5 {[%emt 0:00:00]} Raf7 {
[%emt 0:00:00]} 37. Bd4 {[%emt 0:00:00]} Bxd4 {[%emt 0:00:42]} 38. Rfxd4 {
[%emt 0:00:00]} Rc7 {[%emt 0:00:13]} 39. Rd6 {[%emt 0:00:00]} 1-0

[Event "Gibraltar Masters 18th"]
[Site "Gibraltar"]
[Date "2020.01.28"]
[Round "8.36"]
[White "Tregubov, Pavel V"]
[Black "Kobo, Ori"]
[Result "1/2-1/2"]
[ECO "D00"]
[WhiteElo "2588"]
[BlackElo "2445"]
[PlyCount "97"]
[EventDate "2020.01.21"]
[EventType "swiss"]
[EventRounds "10"]
[EventCountry "GGB"]
[SourceTitle "BritBase"]
[Source "John Saunders"]
[SourceDate "2021.06.05"]
[SourceVersion "1"]
[SourceVersionDate "2021.06.05"]
[SourceQuality "1"]
[TimeControl "40/100:0"]
[WhiteClock "0:07:23"]
[BlackClock "0:16:55"]

1. d4 {[%emt 0:00:00]} Nf6 {[%emt 0:00:00]} 2. Nc3 {[%emt 0:00:00]} d5 {
[%emt 0:00:00]} 3. Bf4 {[%emt 0:00:00]} e6 {[%emt 0:00:00]} 4. Nb5 {[%emt 0:00:
00]} Na6 {[%emt 0:00:00]} 5. e3 {[%emt 0:00:00]} c6 {[%emt 0:00:00]} 6. Nc3 {
[%emt 0:00:00]} Bb4 {[%emt 0:00:00]} 7. Bxa6 {[%emt 0:00:00]} bxa6 {[%emt 0:00:
00]} 8. Nge2 {[%emt 0:00:00]} O-O {[%emt 0:00:00]} 9. O-O {[%emt 0:00:00]} a5 {
[%emt 0:00:00]} 10. Na4 {[%emt 0:00:00]} Ba6 {[%emt 0:00:00]} 11. a3 {[%emt 0:
00:00]} Be7 {[%emt 0:00:00]} 12. Re1 {[%emt 0:00:00]} Nd7 {[%emt 0:00:00]} 13.
Nec3 {[%emt 0:00:00]} c5 {[%emt 0:00:00]} 14. e4 {[%emt 0:00:00]} cxd4 {
[%emt 0:00:00]} 15. Qxd4 {[%emt 0:00:00]} Bf6 {[%emt 0:00:00]} 16. e5 {[%emt 0:
00:00]} Be7 {[%emt 0:00:00]} 17. Rad1 {[%emt 0:00:00]} Qc8 {[%emt 0:00:00]} 18.
Qd2 {[%emt 0:00:00]} Re8 {[%emt 0:00:00]} 19. Ne2 {[%emt 0:00:00]} Bxe2 {
[%emt 0:00:00]} 20. Rxe2 {[%emt 0:00:00]} Rb8 {[%emt 0:00:00]} 21. Qd4 {
[%emt 0:00:00]} Qa6 {[%emt 0:00:00]} 22. c4 {[%emt 0:00:00]} dxc4 {[%emt 0:00:
00]} 23. Red2 {[%emt 0:00:00]} Nf8 {[%emt 0:00:00]} 24. Be3 {[%emt 0:00:00]}
Qc6 {[%emt 0:00:00]} 25. Nc3 {[%emt 0:00:00]} Ng6 {[%emt 0:00:00]} 26. f4 {
[%emt 0:00:00]} a6 {[%emt 0:00:00]} 27. Qe4 {[%emt 0:00:00]} Qxe4 {[%emt 0:00:
00]} 28. Nxe4 {[%emt 0:00:00]} Rb3 {[%emt 0:00:00]} 29. Bc5 {[%emt 0:00:00]} h6
{[%emt 0:00:00]} 30. Bxe7 {[%emt 0:00:00]} Rxe7 {[%emt 0:00:00]} 31. g3 {
[%emt 0:00:00]} Rc7 {[%emt 0:00:00]} 32. Rc2 {[%emt 0:00:00]} Rb8 {[%emt 0:00:
00]} 33. Nd6 {[%emt 0:00:00]} c3 {[%emt 0:00:00]} 34. Rxc3 {[%emt 0:00:00]}
Rxc3 {[%emt 0:00:00]} 35. bxc3 {[%emt 0:00:00]} Rb3 {[%emt 0:00:00]} 36. c4 {
[%emt 0:00:00]} Rxa3 {[%emt 0:00:00]} 37. Rb1 {[%emt 0:00:00]} a4 {[%emt 0:00:
12]} 38. Rb6 {[%emt 0:00:00]} Rc3 {[%emt 0:00:52]} 39. Rxa6 {[%emt 0:00:00]} a3
{[%emt 0:00:00]} 40. Ra8+ {[%emt 0:00:00]} Nf8 {[%emt 0:00:04]} 41. Kf2 {
[%emt 0:00:00]} g5 {[%emt 0:00:00]} 42. h4 {[%emt 0:00:00]} gxh4 {[%emt 0:00:
00]} 43. gxh4 {[%emt 0:00:00]} h5 {[%emt 0:00:00]} 44. Ke2 {[%emt 0:00:00]} Kg7
{[%emt 0:00:00]} 45. f5 {[%emt 0:00:00]} exf5 {[%emt 0:00:00]} 46. Nxf5+ {
[%emt 0:00:00]} Kg6 {[%emt 0:00:00]} 47. Ne7+ {[%emt 0:00:00]} Kg7 {[%emt 0:00:
00]} 48. Nf5+ {[%emt 0:00:00]} Kg6 {[%emt 0:00:00]} 49. Ne7+ {[%emt 0:00:00]}
1/2-1/2